Cogmind - Beta 16 @@@ ROGUE MODE // 2025.11.03 @ 04:31:19 Player: Demo Result: Destroyed by C-17 Slicer with Concussive RPG Performance ------------- Evolutions (3) 1500 Regions Visited (5) 1000 Robots Destroyed (98) 490 Value Destroyed (4458) 4458 Prototype IDs (10) 200 Alien Tech Used (0) 0 Bonus (3132) 3132 TOTAL SCORE: 10780 Bonus ------- Pacifist 470 High Alert Combat Kills 1114 Follower Combat Kills 393 Entered Garrisons 200 Used RIF Installer 1000 Friendly Fire -45 Cogmind --------- Core Integrity 0/700 Matter 300/300 Energy 54/100 System Corruption 10% Temperature Cool (0) Movement Flying (40) Location -7/Factory Parts ------- > --- POWER (1) -------- (None) > --- PROPULSION (2) --- Biomechanical Wings > --- UTILITY (8) ------ (None) > --- WEAPON (2) ------- (None) > --- INVENTORY (5) ---- Relay Coupler [Swarmer] (27) Relay Coupler [Grunt] (22) Shock Rifle Arc Projector Missile Launcher Peak State ------------ > --- POWER ------------ Improved Deuterium Engine > --- PROPULSION ------- Wheel Wheel > --- UTILITY ---------- Improved Cooling System Huge Storage Unit Improved Weapon Shielding Hardened Medium Armor Plating Improved Medium Armor Plating Improved Medium Armor Plating Medium Reactive Plating Relay Coupler [NC] > --- WEAPON ----------- Heavy EM Shotgun Enhanced Autogun > --- INVENTORY -------- Light Nuclear Core Wheel Wheel Improved Cooling System Compact Matter Pod Transport Network Coupler Weapon Cycler Medium Reactive Plating Relay Coupler [NC] Relay Coupler [Swarmer] Relay Coupler [Grunt] Relay Coupler [Grunt] Relay Coupler [Grunt] Relay Coupler [Grunt] Relay Coupler [Sentry] Relay Coupler [Sentry] Relay Coupler [Sentry] Shock Rifle Pulse Rifle Pulse Rifle Missile Launcher Missile Launcher Improved Datajack Axe [Rating: 45] Favorites ----------- Power Improved Deuterium Engine Engine Improved Deuterium Engine Power Core Light Nuclear Core Propulsion Wheel Treads Light Treads Wheel Wheel Flight Unit Biomechanical Wings Utility Improved Medium Armor Plating Device Improved Cooling System Storage Huge Storage Unit Processor Machine Analyzer Hackware Relay Coupler [NC] Protection Improved Medium Armor Plating Weapon Heavy EM Shotgun Energy Gun Heavy EM Shotgun Energy Cannon Ion Cannon Ballistic Gun Enhanced Autogun Launcher Missile Launcher Special Weapon Remote Datajack Slashing Weapon Axe Special Melee Weapon Improved Datajack Build | -11 -10 -9 -8 -8 -7 ------- Run | Yrd Mat Mat Mat Gar Fac Slots Evolved 6 | . . 2 2 . 2 Power . | . . . . . . Propulsion . | . . . . . . Utility 6 | . . 2 2 . 2 Weapon . | . . . . . . Parts Attached 79 | 2 2 . 34 17 24 Power 8 | . . . 4 1 3 Engine 5 | . . . 3 1 1 Core 3 | . . . 1 . 2 Reactor . | . . . . . . Propulsion 17 | 2 . . 5 2 8 Treads 3 | 2 . . 1 . . Leg . | . . . . . . Wheel 12 | . . . 4 2 6 Hover . | . . . . . . Flight 2 | . . . . . 2 Utility 32 | . 1 . 14 7 10 Device 5 | . . . 2 1 2 Storage 2 | . . . 2 . . Processor 2 | . 1 . . . 1 Hackware 6 | . . . . 1 5 Protection 17 | . . . 10 5 2 Artifact . | . . . . . . Weapon 22 | . 1 . 11 7 3 Energy Gun 8 | . . . 2 4 2 Energy Cannon 1 | . . . 1 . . Ballistic Gun 8 | . 1 . 7 . . Ballistic Cannon . | . . . . . . Launcher 2 | . . . 1 1 . Special Weapon 1 | . . . . . 1 Impact Weapon . | . . . . . . Slashing Weapon 1 | . . . . 1 . Piercing Weapon . | . . . . . . Special Melee Weapon 1 | . . . . 1 . Unidentified Prototypes 3 | . . . 3 . . Parts Lost 26 | . . . 1 8 17 Power 4 | . . . . 1 3 Propulsion 8 | . . . 1 2 5 Utility 9 | . . . . 3 6 Weapon 5 | . . . . 2 3 Highest Loss Streak 11 | . . . 1 2 11 To Critical Strikes . | . . . . . . Average Backups 22 | . 1 2 18 24 24 Power . | . . . . 1 . Propulsion 2 | . . 1 1 3 2 Utility 11 | . 1 1 10 12 11 Weapon 6 | . . . 6 7 7 Tool/Special . | . . . . . . Unused Backups 31 | . 1 . 13 6 11 Power 2 | . . . 2 . . Propulsion 3 | . . . . . 3 Utility 21 | . 1 . 8 6 6 Weapon 5 | . . . 3 . 2 Tool/Special . | . . . . . . Average Slot Usage (%) 92 | . 48 37 85 97 95 Engine 6 | . . . 3 8 6 Core 1 | . . . 4 . . Wheel 14 | . . . 14 17 12 Device 7 | . . . 8 9 5 Storage 8 | . . . 9 9 6 Hackware 6 | . . . . . 19 Protection 28 | . . . 26 34 25 Energy Gun 9 | . . . 4 14 7 Ballistic Gun 5 | . 9 8 11 2 4 Peak Build Rating 45 | 2 4 4 39 41 45 Average Rating 36 | 1 3 3 30 38 42 On Entrance 14 | . 2 4 1 39 39 Avg Prop Armor Cover (%) 35 | 41 35 34 . . . Naked Turns 11 | . . . 3 . 8 Heaviest Build 143 | . 1 1 137 141 143 Greatest Support 32 | 3 3 3 32 26 32 Greatest Overweight (x) 13 | . . . 12 12 13 Average Overweight (x) 5 | . . . 3 5 6 Largest Inventory Capacity 25 | 5 5 5 25 25 25 Average Capacity 23 | 5 5 5 20 25 24 Most Carried 25 | 1 3 2 25 25 25 Average Carried 22 | . 2 2 18 24 24 Final Capacity 25 | 5 5 5 25 25 5 Final Carried 25 | 1 2 2 25 25 5 Class Distribution -------------------- 40% | Bothacker-Mutant 34% | Scavenger-Mutant 24% | Mutant Dominant Class ---------------- Mutant | -10/Materials Mutant | -9/Materials Scavenger-Mutant | -8/Materials Scavenger-Mutant | -8/Garrison Bothacker-Mutant | -7/Factory Resources | -11 -10 -9 -8 -8 -7 ----------- Run | Yrd Mat Mat Mat Gar Fac Matter Collected 2520 | 220 . . 1043 414 843 Remotely . | . . . . . . Salvage Created 3714 | . . . 1456 1226 1032 Parts 200 | . . . 91 61 48 Haulers Intercepted 3 | . . . 3 . . Recyclers Shooed 1 | . . . . . 1 Parts Field Recycled . | . . . . . . Retrieved Matter . | . . . . . . Parts Self-Destructed . | . . . . . . Prevented . | . . . . . . Parts Restored . | . . . . . . Kills | -11 -10 -9 -8 -8 -7 ------- Run | Yrd Mat Mat Mat Gar Fac Combat Hostiles Destroyed 78 | . . . 31 28 19 Guns 43 | . . . 17 13 13 Cannons 2 | . . . 2 . . AOE 30 | . . . 12 15 3 Classes Destroyed 16 | . . . 11 3 2 Worker 5 | . . . 2 . 3 Builder 4 | . . . 3 . 1 Tunneler 1 | . . . 1 . . Hauler 3 | . . . 3 . . Recycler 4 | . . . 2 . 2 Mechanic 1 | . . . . . 1 Operator 2 | . . . 1 . 1 Swarmer 21 | . . . 13 4 4 Grunt 31 | . . . 9 16 6 Brawler 4 | . . . 1 . 3 Duelist 2 | . . . . 1 1 Sentry 9 | . . . 6 3 . Demolisher 1 | . . . . 1 . Specialist 3 | . . . . 3 . Hunter 3 | . . . 2 . 1 Programmer 4 | . . . . . 4 Best Kill Streak 8 | . . . 8 7 5 Combat Bots Only 8 | . . . 8 7 4 Max Kills in Single Turn 3 | . . . 3 3 2 Gunslinging . | . . . . . . Exploded 3 | . . . 3 3 2 Melee . | . . . . . . Uniques/NPCs Destroyed . | . . . . . . Combat | -11 -10 -9 -8 -8 -7 -------- Run | Yrd Mat Mat Mat Gar Fac Hostile Shots Fired 597 | . 22 23 167 83 302 Missed 164 | . 11 10 40 18 85 Hits 433 | . 11 13 127 65 217 Melee 7 | . . . . . 7 Projectile 426 | . 11 13 127 65 210 AOE 7 | . . . . 6 1 Critical Strikes 17 | . . . 6 3 8 Actively Blocked 2 | . . . . . 2 Damage Taken 5719 | . 91 105 1127 1457 2939 Core 904 | . 39 35 80 50 700 Absorbed by Shields 523 | . . . . . 523 Redirected to Shielding 204 | . . . . . 204 Ignored by Resistances 592 | . . . 277 . 315 Regen/Repaired (Parts) 70 | . . . . . 70 Core Remaining (%) 87 | 100 84 91 . 76 . Volleys Fired 295 | . . . 98 94 103 Largest 2 | . . . 2 2 2 Hottest 126 | . . . 80 126 126 Shots Fired 514 | . . . 168 177 169 Gun 479 | . . . 156 166 157 Cannon 5 | . . . 5 . . Launcher 20 | . . . 7 11 2 Special 10 | . . . . . 10 Kinetic 180 | . . . 123 7 50 Thermal 87 | . . . 24 9 54 Explosive 20 | . . . 7 11 2 Electromagnetic 217 | . . . 14 150 53 Robot Hit Streak 15 | . . . 8 15 12 Robot Miss Streak 7 | . . . 7 4 3 Penetration Max 1 | . . . 1 . . Secondary Targets 7 | . . . 1 2 4 Max Gunslinging Chain 1 | . . . 1 1 1 Shots Hit Robots 318 | . . . 112 74 132 Core Hits 171 | . . . 70 60 41 Critical Kills . | . . . . . . Critical Parts Destroyed . | . . . . . . Critical Strikes 1 | . . . 1 . . Burn 1 | . . . 1 . . Melee Attacks 34 | . . . . 20 14 Impact . | . . . . . . Slashing 15 | . . . . 15 . Piercing . | . . . . . . Sneak Attacks 12 | . . . . 2 10 Combat Hostiles 1 | . . . . . 1 Follow-up Attacks . | . . . . . . Damage Inflicted 7456 | . . . 2450 2385 2621 Guns 4630 | . . . 1500 1092 2038 Cannons 92 | . . . 92 . . Explosions 2730 | . . . 858 1293 579 Melee . | . . . . . . Ramming 4 | . . . . . 4 Kinetic 1646 | . . . 1107 . 539 Thermal 1765 | . . . 251 567 947 Explosive 2041 | . . . 858 743 440 Electromagnetic 2000 | . . . 234 1075 691 Impact . | . . . . . . Slashing . | . . . . . . Piercing . | . . . . . . Highest Corruption 6 | . . . . . 6 Average Corruption 1 | . . . . . 1 Corruption Purged . | . . . . . . Corruption Blocked . | . . . . . . Effects 5 | . . . . . 5 Message Errors 3 | . . . . . 3 Matter Fused 1 | . . . . . 1 Data Loss (minor) 1 | . . . . . 1 Overload Shots . | . . . . . . Overflow Damage 162 | . . . 126 3 33 Projectiles 10 | . . . 10 . . Explosions 152 | . . . 116 3 33 Melee . | . . . . . . Knockbacks 1 | . . . . . 1 Impact 1 | . . . . . 1 Kinetic . | . . . . . . Secondary . | . . . . . . Self-Inflicted Damage 306 | . . . . 304 2 Shots 7 | . . . . 7 . Rammed 1 | . . . . . 1 Targets Rammed 1 | . . . . . 1 Kicked . | . . . . . . Crushed . | . . . . . . Highest Temperature 254 | . . . 31 45 254 Average Temperature 38 | . . . 7 12 58 Received Heat Transfer 1217 | . . . 432 342 443 Effects 2 | . . . . . 2 Interference 2 | . . . . . 2 Siege Activations . | . . . . . . Martial Activations . | . . . . . . Shielding Activations . | . . . . . . Robots Disrupted . | . . . . . . Combat Hostiles . | . . . . . . Robots Corrupted 2 | . . . . . 2 Combat Hostiles 2 | . . . . . 2 Parts Fried 15 | . . . 1 8 6 Impact Corruptions . | . . . . . . Robots Melted 1 | . . . . . 1 Combat Hostiles 1 | . . . . . 1 Parts Melted 4 | . . . . . 4 Heat Transferred 2578 | . . . 555 487 1536 Parts Sabotaged . | . . . . . . Parts Stolen . | . . . . . . Parts Stripped . | . . . . . . Power Chain Reactions 10 | . . . . 8 2 Alert | -11 -10 -9 -8 -8 -7 ------- Run | Yrd Mat Mat Mat Gar Fac Maximum Alert Level 5 | . . . 2 5 4 Low Security (%) 17 | 100 100 100 60 . . Level 1 4 | . . . 6 6 . Level 2 14 | . . . 32 16 . Level 3 39 | . . . . 19 94 Level 4 11 | . . . . 25 5 Level 5 12 | . . . . 31 . High Security . | . . . . . . Max Security . | . . . . . . Peak Influence 1891 | . 30 12 556 1891 1145 Initial 992 | . . 12 . 358 992 Average 805 | . 6 6 211 1177 881 Influence Increases 3634 | . 45 . 1022 1613 954 Destroy 0b10 Robot/C 1800 | . . . 620 560 620 Destroy 0b10 Robot/NC 95 | . . . 60 . 35 Destroy Leader 316 | . . . 166 20 130 Allied During Kill 85 | . . . . 3 82 Successful Hack 58 | . . . 17 28 13 Disable Machine 150 | . . . 90 45 15 Anti-Garrison Action 650 | . . . . 650 . Destroy Structure 345 | . . . 69 262 14 Lose Combat Pursuer 135 | . 45 . . 45 45 Influence Decreases 2587 | . 15 30 470 274 1798 Entered New Map 1111 | . . 18 . 194 899 Time Decay 1076 | . 15 12 460 . 589 Lost Part 260 | . . . 10 80 170 Lost Ally 140 | . . . . . 140 Squads Dispatched 19 | . 1 . 5 . 13 Investigation 4 | . . . 2 . 2 Extermination 3 | . . . . . 3 Reinforcement 5 | . 1 . 2 . 2 Assault 3 | . . . . . 3 Garrison 4 | . . . 1 . 3 Intercept . | . . . . . . Searches Triggered . | . . . . . . Construction Impeded . | . . . . . . Haulers Reinforced . | . . . . . . Active Scanning Responses . | . . . . . . Cargo Convoy Interrupts 1 | . . . . . 1 Stealth | -11 -10 -9 -8 -8 -7 --------- Run | Yrd Mat Mat Mat Gar Fac Distress Signals 3 | . . 1 1 . 1 Communications Jammed . | . . . . . . Distress Signals . | . . . . . . Times Spotted 145 | . 7 3 40 35 60 Peak Tracking Total 11 | . 3 5 5 4 11 Tactical Retreats 6 | . 2 . . 2 2 Traps | -11 -10 -9 -8 -8 -7 ------- Run | Yrd Mat Mat Mat Gar Fac Traps Triggered 16 | . . 1 1 11 3 Indirectly . | . . . . . . Trap Hack Attempts . | . . . . . . Triggered . | . . . . . . Disarmed . | . . . . . . Reprogrammed . | . . . . . . Reused . | . . . . . . Traps Extracted . | . . . . . . Installed . | . . . . . . Triggered . | . . . . . . Machines | -11 -10 -9 -8 -8 -7 ---------- Run | Yrd Mat Mat Mat Gar Fac Machines Disabled 18 | . . . 6 11 1 Max in Single Turn 2 | . . . 1 2 1 Garrison Relay 4 | . . . . 4 . Phase Generator 1 | . . . . 1 . Machines Repaired . | . . . . . . Machines Dismantled . | . . . . . . Machines Sabotaged . | . . . . . . Overloaded Fab Kills . | . . . . . . Hacking | -11 -10 -9 -8 -8 -7 --------- Run | Yrd Mat Mat Mat Gar Fac Machines Accessed 11 | . . . 4 3 4 Terminals 7 | . . . 1 3 3 Fabricators 1 | . . . . . 1 Repair Stations . | . . . . . . Recycling Units . | . . . . . . Scanalyzers 2 | . . . 2 . . Garrison Access 1 | . . . 1 . . Total Hacks 29 | . . . 14 5 10 Successful 12 | . . . 7 2 3 Failed 16 | . . . 6 3 7 Catastrophic 5 | . . . . 1 4 Database Lockouts 1 | . . . 1 . . Manual 12 | . . . 4 . 8 Terminals 17 | . . . 4 5 8 Fabricators 2 | . . . . . 2 Repair Stations . | . . . . . . Recycling Units . | . . . . . . Scanalyzers 8 | . . . 8 . . Garrison Access 2 | . . . 2 . . Terminal Hacks 3 | . . . . 2 1 Branch Access Points 1 | . . . . . 1 Emergency Access Points 1 | . . . . 1 . Patrol Navigation 1 | . . . . 1 . Fabricator Hacks 1 | . . . . . 1 Build 1 | . . . . . 1 Repair Station Hacks . | . . . . . . Recycling Unit Hacks . | . . . . . . Scanalyzer 5 | . . . 5 . . Retrieve Study 5 | . . . 5 . . Garrison Access Hacks 1 | . . . 1 . . Unlock Access 1 | . . . 1 . . Unauthorized Hacks 2 | . . . 1 . 1 Terminals 2 | . . . 1 . 1 Botnet 2 | . . . 1 . 1 Fabricators . | . . . . . . Repair Stations . | . . . . . . Recycling Units . | . . . . . . Scanalyzers . | . . . . . . Garrison Access . | . . . . . . Data Cores Recovered . | . . . . . . Used . | . . . . . . Hacking Detections 10 | . . . 4 2 4 Full Trace Events 5 | . . . 2 1 2 Feedback Events . | . . . . . . Feedback Blocked . | . . . . . . Robot Schematics Acquired . | . . . . . . Robots Built 1 | . . . . . 1 Authchips . | . . . . . . Time 116 | . . . . . 116 Total Robot Build Rating 3 | . . . . . 3 Part Schematics Acquired . | . . . . . . Parts Built . | . . . . . . Authchips . | . . . . . . Time . | . . . . . . Total Part Build Rating . | . . . . . . Part Studies Acquired 5 | . . . 5 . . Parts Repaired . | . . . . . . Time . | . . . . . . Parts Recycled . | . . . . . . Recycled Matter . | . . . . . . Retrieved Matter . | . . . . . . Retrieved Components . | . . . . . . Parts Scanalyzed . | . . . . . . Part Schematics Acquired . | . . . . . . Parts Damaged . | . . . . . . Bothacking | -11 -10 -9 -8 -8 -7 ------------ Run | Yrd Mat Mat Mat Gar Fac Used RIF Installer 2 | . . . . 2 . Zone Cloak 1 | . . . . 1 . Robots Hacked 14 | . . . . 1 13 Non-combat 7 | . . . . 1 6 Combat 7 | . . . . . 7 Robot Hacks Applied 18 | . . . . 3 15 parse_system 3 | . . . . 2 1 ignore_repairs 1 | . . . . . 1 map_walls 1 | . . . . . 1 drop_inventory 1 | . . . . . 1 ignore_parts 1 | . . . . . 1 amplify_resonance 2 | . . . . . 2 formatsys_low 1 | . . . . . 1 formatsys_high 8 | . . . . 1 7 Relay Couplers Released 14 | . . . . 14 . Machine Destruction 14 | . . . . 14 . Attached 6 | . . . . 1 5 Fabnet Peak Effective % . | . . . . . . Robots Rewired . | . . . . . . Allies Hacked 1 | . . . . . 1 Hacks Repelled . | . . . . . . Allies | -11 -10 -9 -8 -8 -7 -------- Run | Yrd Mat Mat Mat Gar Fac Total Allies 11 | . . . . 2 9 Largest Group 6 | . . . . 1 6 Highest-Rated Group 144 | . . . . 27 144 Highest-Rated Ally 40 | . . . . 27 40 Total Orders 3 | . . . . 1 2 GUARD 1 | . . . . 1 . AID 2 | . . . . . 2 Ally Attacks 68 | . . . . 1 67 Total Damage 1393 | . . . . 29 1364 Kills 13 | . . . . . 13 Allies Corrupted . | . . . . . . Allies Melted . | . . . . . . Intel | -11 -10 -9 -8 -8 -7 ------- Run | Yrd Mat Mat Mat Gar Fac Active Infowar (turns) 204 | . . . . . 204 Machine Analysis 204 | . . . . . 204 Robot Analysis Total . | . . . . . . Derelict Logs Recovered . | . . . . . . Drone Launches . | . . . . . . Drone Recoveries . | . . . . . . Exploration | -11 -10 -9 -8 -8 -7 ------------- Run | Yrd Mat Mat Mat Gar Fac Turns Passed 5544 | 24 76 43 1393 2149 1859 Spaces Moved 2809 | 40 131 84 647 1037 870 Core 276 | 40 131 84 8 . 13 Treads 31 | . . . 31 . . Legs . | . . . . . . Wheels 2475 | . . . 608 1037 830 Hover . | . . . . . . Flight 27 | . . . . . 27 Fastest Speed 37 | 50 50 50 50 140 37 Average Speed 151 | 50 50 50 152 159 170 Slowest Speed 320 | 50 50 50 320 250 265 Overloaded Moves . | . . . . . . Propulsion Burnouts . | . . . . . . Robots Hopped 1 | . . . . 1 . Potential Cave-ins . | . . . . . . Cave-ins Triggered . | . . . . . . Exploration Rate (%) 36 | 3 37 12 51 93 20 Regions Visited 5 Branch Regions . Pre-discovered Areas . | . . . . . . Known Exits Taken 1 | . . . 1 . . Unknown Exits Taken 3 | 1 1 1 . . . Scrap Searched . | . . . . . . Spaces Dug 13 | . . . . 13 . Terrain Destroyed 291 | . . . 72 201 18 Melee 5 | . . . . 5 . Projectile . | . . . . . . AOE 286 | . . . 72 196 18 Terrain Rammed . | . . . . . . Walls Destroyed . | . . . . . . Machines Disabled . | . . . . . . Actions | -11 -10 -9 -8 -8 -7 --------- Run | Yrd Mat Mat Mat Gar Fac Total 3596 | 42 140 84 919 1323 1088 Wait 94 | . 5 1 27 38 23 Move 2803 | 39 130 83 647 1034 870 Hop 1 | . . . . 1 . Pick Up 87 | 1 2 . 53 18 13 Fast Attach 40 | 2 2 . 27 2 7 Attach 31 | . . . 4 7 20 Detach 1 | . . . 1 . . Swap 73 | . . . 18 26 29 Drop 62 | . 1 . 44 11 6 Fire 295 | . . . 98 94 103 Melee 34 | . . . . 20 14 Ram 1 | . . . . . 1 Kick . | . . . . . . Crush . | . . . . . . Escape Stasis 72 | . . . . 72 . Rewire 2 | . . . . . 2 Trap . | . . . . . . Miscellaneous . | . . . . . . Route ------- -11/Scrapyard -10/Materials -9/Materials -8/Materials (discovered 3 exits: *Fac x2 / Gar) -8/Garrison (discovered 4 exits: *Fac x3 / [*Mat]) -7/Factory (discovered 4 exits: [*Fac] / Sto / *Low x2) History --------- Turn | Location | Event 9 | -11/Scrapyard | Discovered new exit (range 15) 25 | -11/Scrapyard | Entered Materials 90 | -10/Materials | Discovered new exit (range 10) 101 | -10/Materials | Entered another Materials area 101 | -9/Materials | Evolved 2 slots: Utility x2 137 | -9/Materials | Discovered new exit (range 16) 144 | -9/Materials | Entered another Materials area 144 | -8/Materials | Evolved 2 slots: Utility x2 282 | -8/Materials | Released all parts (7) 354 | -8/Materials | Build established: Mutant 662 | -8/Materials | Build established: Scavenger-Mutant 972 | -8/Materials | Central database locked down 1006 | -8/Materials | Discovered new exit (range 10) 1064 | -8/Materials | Destroyed 8 combat bots 1199 | -8/Materials | Build established: Mutant 1438 | -8/Materials | Discovered new exit (range 13) 1506 | -8/Materials | Garrison activated, responded to threat 1537 | -8/Materials | Identified exit to Garrison 1537 | -8/Materials | Entered Garrison 1688 | -8/Garrison | Rescued a captive Derelict 1707 | -8/Garrison | Triggered checkpoint 1737 | -8/Garrison | Garrison Relay disabled 1775 | -8/Garrison | Triggered checkpoint 1833 | -8/Garrison | Discovered new exit (range 5) 1960 | -8/Garrison | Triggered checkpoint 2042 | -8/Garrison | Garrison Relay disabled 2092 | -8/Garrison | Installed Relay Interface Framework 2131 | -8/Garrison | Discovered new exit (range 15) 2156 | -8/Garrison | Build established: Scavenger-Mutant 2158 | -8/Garrison | Expanded RIF knowledge: Zone Cloak 2281 | -8/Garrison | Triggered checkpoint 2303 | -8/Garrison | Triggered checkpoint 2308 | -8/Garrison | Destroyed 7 combat bots 2312 | -8/Garrison | Triggered checkpoint 2387 | -8/Garrison | Triggered checkpoint 2464 | -8/Garrison | Garrison Relay disabled 2563 | -8/Garrison | Discovered new exit (range 10) 2619 | -8/Garrison | Phase Generator disabled 2930 | -8/Garrison | Discovered new exit (range 5) 3005 | -8/Garrison | Garrison Relay disabled 3009 | -8/Garrison | Triggered checkpoint 3118 | -8/Garrison | Spotted B-75 Beast 3532 | -8/Garrison | Build established: Bothacker-Mutant 3686 | -8/Garrison | Entered Factory 3686 | -7/Factory | Accompanied by 1 ally 3686 | -7/Factory | Evolved 2 slots: Utility x2 3783 | -7/Factory | Identified exit to Storage 3783 | -7/Factory | Identified exit to Lower Caves 4247 | -7/Factory | Lost 3 allies 4777 | -7/Factory | Fabricated O-24 Administrator? 4886 | -7/Factory | First assault squad dispatched 5169 | -7/Factory | Discovered new exit (range 4) 5303 | -7/Factory | Garrison activated, responded to threat 5396 | -7/Factory | Lost 5 parts (1p1n2u1w) 5469 | -7/Factory | Cargo convoy interrupted 5515 | -7/Factory | Core integrity fell below 50% 5525 | -7/Factory | Released all parts (11) 5536 | -7/Factory | Core integrity fell below 20% 5545 | -7/Factory | Destroyed by C-17 Slicer with Concussive RPG Last Messages --------------- 05525_ Released Weapon Cycler. 05525_ Weapon Cycler crushed and broken. 05525_ Released Pulse Rifle+. 05525_ Pulse Rifle+ crushed and broken. 05526_ Slammed into X-57 Shotgunner. 05526_ X-57 Shotgunner knocked back. 05530_ K-01 Serf collects debris. 05532_ Slug penetrates Assembly Bed. 05533_ Acquired Biomechanical Wings. 05534_ X-67 Chaingunner IFF system glitched. 05535_ Acquired Biomechanical Wings. 05535_ Penetrated by Slug. 05537_ Acquired 29 matter. 05537_ Acquired 39 matter. 05538_ Acquired 32 matter. 05541_ System corrupted: Component data lost. 05543_ ALERT: Suspicious intruders detected, dispatching Cutter reinforcements to area. 05545_ Biomechanical Wings destroyed. 05545_ System corrupted by crushing effect (+4). Map ----- +----------------------------------------------------+ | ?????????????????????? ##### | | ?????????????????????????#### ??????#" | | ????????????????????????????####????????#" | | ????????????????????????????????????????#" | | ???????????????????????????????########?#T | | ??????????????????????????????? ?#" /// | | ?????????????????????????#####??"" "" #" // | | ????????????????????????? #??"" "" #" // | | ????????????????????????? #???"" """ + | | ????????????????????????? #???"" """ # % | | ????????????????????????? #???"" """ ## | | ?????????????????????????" #??? ??# ####### | | ????????????????????????"" #??? ??# #?????? | | ???????????????????""" """ #??######???# #?????? | | ??????????????????? #?????#######+######? | | ???????????????????""" """ #?????# ## | | ????????????????????"" """ #?????# """ """ # | | ?????????????????????? """ ####### """ """ # | | ???????????????????????? # # """ """ #^ | | ???????????#+#############+### # + | | ?????????? c H # """ """ # | | ?????????? t c + """ """ # | | ?????????? # """ """ # | | ?????????? # # | | ?????????? # # | | ???????????########/#####@########## # | | ????????????????????????# #????????# ! # | | ????????????????????????#%#????????############## | | ????????????????????????# #?????????????????????## | | ????????????????????????# #??????????????????????? | | ????????????????????????# #??????????????????????? | | ????????????????????????# #??????????????????????? | | ????????????????????????# #??????????????????????? | | ????????????????????????#%#??????????????????????? | | ????????????????????????# #??????????????????????? | | ????????????????????????#s#??????????????????????? | | ????????????????????????#s#??????????????????????? | | ????????????????????????#s#??????????????????????? | | ????????????????????????# #???#######????????????? | | ????????????????????????# #???? #????????????? | | ????????????????????????# #############??????????? | | ????????????????????????# =%%%[ =|= #??????????? | | ????????????????????????#######![%[!= ######?????? | | ?????????????????????????????## [!%=[=############ | | ????????????????????????####### [*!* * | | ????????????????????????# =[#[[[[[ /%= | | ????????????????????????# ?#*!*!* [ ! = | | ????????????????????????# ?#!= !!% %*%! = | | ????????????????????????# """ #! [ * % * | | ????????????????????????# """ # % | +----------------------------------------------------+ Best States ------------- Heat Dissipation 61 Energy Generation 16 Energy Capacity 290 Matter Stores 345 Matter Capacity 450 Sight Range 16 Terrain Scan Density 10 Armor Coverage 975 Resistance: KI 30 Propulsion Shielding 66 Weapon Shielding 66 Weapon Cycling 15 Evasion (%) 62 Targeting Accuracy 5 Recoil Reduction 1 Relay Coupler Types 3 Relay Coupler Value 61 Item Schematics ----------------- None Robot Schematics ------------------ None Fabricated ------------ O-24 Administrator | x1 | -7/Factory | Preloaded Repaired ---------- Nothing Studied --------- Com. Wheel | -8/Materials | Hacked Wheel | -8/Materials | Hacked Missile Launcher | -8/Materials | Hacked Pulse Rifle | -8/Materials | Hacked Lgt. Nuclear Core | -8/Materials | Hacked Alien Tech Used ----------------- None Achievements -------------- Satisfying Challenges ------------ None Game ------ Seed BombardmentEtherialFocus Manual? 0 Play Time 00:38:52 Cumulative 357.2 hours Start 2025.11.03 @ 03:54:34 End 2025.11.03 @ 04:31:19 Sessions 1 Manual Loads 0 Difficulty Rogue Special Mode None Game No. 311 Rogue 311 Adventurer 0 Explorer 0 Win Type - Total 2 Types 1/1/0/0/0/0/0/0/0/0 Lore% 82 Gallery% 82 Achievement% 58 Wizard Run 0 Options --------- Layout 1 ASCII 0 Keyboard 0 Movement Numpad Keybinds 0 Fullscreen 1 Font 24/Smallcaps Map View 50x35 Zoom Use 0% Tactical HUD 1 Map Filters NONE Filters NONE Steam 1 RUN: 9311ef30-a4a7-42a2-b11a-8478ccf8aebb